[Event "European Womens-ch 2025"]
[Site "Rhodes"]
[Date "2025.04.03"]
[Round "4.1"]
[White "Narva, Mai"]
[Black "Kirtadze, Anastasia"]
[Result "1/2-1/2"]
[Annotator "RC"]
[ECO "B85"]
[WhiteElo "2380"]
[BlackElo "2180"]
[PlyCount "108"]
[EventDate "2025.03.29"]
[EventType "swiss"]
[EventCountry "GRE"]
[SourceTitle "playchess.com"]
[Source "ChessBase"]
[SourceQuality "1"]
[TimeControl "40/5400+30:1800+30"]

1. e4 {[%emt 0:00:05]} c5 {[%emt 0:00:42]} 2. Nf3 {[%emt 0:00:10]} e6 {[%emt 0:00:08]} 3. d4 {[%emt 0:00:10]} cxd4 {[%emt 0:00:14]} 4. Nxd4 {[%emt 0:00:07]} Nf6 {[%emt 0:00:14]} 5. Nc3 {[%emt 0:00:19]} Nc6 {[%emt 0:00:18]} 6. Be2 {[%emt 0:01:05]} Qc7 {[%emt 0:03:42]} 7. Be3 {[%emt 0:01:24]} a6 {[%emt 0:00:42]} 8. O-O {[%emt 0:03:14]} Be7 {[%emt 0:04:23]} 9. f4 {[%emt 0:00:50]} d6 {[%emt 0:00:08]} 10. Kh1 {[%emt 0:01:14]} O-O {[%emt 0:00:55]} 11. a4 {[%emt 0:00:37]} Bd7 {[%emt 0:05:51]} 12. Nb3 {[%emt 0:00:38]} b6 {[%emt 0:02:16]} 13. Bf3 {[%emt 0:01:20]} Rad8 {[%emt 0:10:58]} 14. g4 {[%emt 0:03:29]} Bc8 {[%emt 0:09:56]} 15. g5 {[%emt 0:02:00]} Nd7 {[%emt 0:05:05]} 16. Bg2 {[%emt 0:02:03]} f6 {[%emt 0:11:12]} 17. h4 {[%emt 0:17:20]} Nc5 {[%emt 0:02:48]} 18. Qe2 {[%emt 0:12:18]} Nb4 {[%emt 0:07:24]} 19. Rad1 {[%emt 0:04:14]} Kh8 {[%emt 0:16:21]} 20. Rd2 {[%emt 0:05:55]} Bd7 {[%emt 0:06:31]} 21. Qc4 {[%emt 0:05:02]} a5 {[%emt 0:01:26]} 22. Rfd1 {[%emt 0:08:55]} Qc8 {[%emt 0:01:40]} 23. Nxc5 {[%emt 0:03:43]} bxc5 {[%emt 0:01:28]} 24. Kh2 {[%emt 0:03:50]} Bc6 {[%emt 0:01:04]} 25. Qe2 {[%emt 0:08:51]} f5 {[%emt 0:01:27]} 26. Nb5 {[%emt 0:01:57]} Bxe4 {[%emt 0:02:48]} 27. Bxe4 {[%emt 0:04:13]} fxe4 {[%emt 0:00:01]} 28. Nxd6 {[%emt 0:00:23]} Bxd6 {[%emt 0:00:10]} 29. Rxd6 {[%emt 0:00:05]} Rxd6 {[%emt 0:00:30]} 30. Rxd6 {[%emt 0:00:04]} Nd5 {[%emt 0:00:24]} 31. Qd2 {[%emt 0:05:36]} c4 {[%emt 0:04:12]} 32. c3 {[%emt 0:04:44]} Qb8 {[%emt 0:00:49]} 33. Rxe6 {[%emt 0:00:18]} Nxe3 {[%emt 0:00:39]} 34. Qxe3 {[%emt 0:00:04]} Rxf4 {[%emt 0:00:03]} 35. Qg3 {[%emt 0:01:10]} Rxh4+ {[%emt 0:00:46]} 36. Kg2 {[%emt 0:00:05]} Qxb2+ {[%emt 0:00:06]} 37. Kg1 {[%emt 0:00:11]} Qc1+ {[%emt 0:00:24]} 38. Kg2 {[%emt 0:00:31]} Qd2+ {[%emt 0:00:27]} 39. Kg1 {[%emt 0:00:07]} Qd1+ {[%emt 0:00:54]} 40. Kf2 {[%emt 0:00:00]} Qd2+ {[%emt 0:00:00]} 41. Kg1 {[%emt 0:01:33]} Qc1+ {[%emt 0:07:10]} 42. Kg2 {[%emt 0:01:57]} Qh1+ {[%emt 0:07:54]} 43. Kf2 {[%emt 0:00:05]} Rh2+ {[%emt 0:14:34]} 44. Ke3 {[%emt 0:00:04]} Qc1+ {[%emt 0:00:10]} 45. Kxe4 {[%emt 0:06:02]} Qc2+ {[%emt 0:01:35]} 46. Kd4 {[%emt 0:01:30]} Rd2+ {[%emt 0:00:49]} 47. Kc5 {[%emt 0:00:45]} Qf5+ {[%emt 0:01:56]} 48. Qe5 {[%emt 0:01:02]} Qf8+ {[%emt 0:00:23]} 49. Kxc4 {[%emt 0:02:28]} Rd8 {[%emt 0:00:31]} 50. Re7 {[%emt 0:03:53]} Qf1+ {[%emt 0:00:41]} 51. Kb3 {[%emt 0:02:25]} Qb1+ {[%emt 0:00:28]} 52. Ka3 {[%emt 0:00:19]} Qa1+ {[%emt 0:00:33]} 53. Kb3 {[%emt 0:00:04]} Qb1+ {[%emt 0:00:18]} 54. Ka3 {[%emt 0:00:05]} Qg6 {[%emt 0:00:41]} 1/2-1/2

[Event "European Womens-ch 2025"]
[Site "Rhodes"]
[Date "2025.04.03"]
[Round "4.2"]
[White "Roebers, Eline"]
[Black "Batsiashvili, Nino"]
[Result "1-0"]
[Annotator "TA"]
[ECO "C58"]
[WhiteElo "2367"]
[BlackElo "2473"]
[PlyCount "101"]
[EventDate "2025.03.29"]
[EventType "swiss"]
[EventCountry "GRE"]
[SourceTitle "playchess.com"]
[Source "ChessBase"]
[SourceQuality "1"]
[TimeControl "40/5400+30:1800+30"]

{[%evp 14,101,27,15,27,30,29,52,43,21,24,0,66,0,13,0,0,0,-26,-24,37,41,56,31,39,0,0,0,0,0,49,31,82,72,89,45,78,68,115,112,156,49,127,129,140,110,313,317,318,305,361,387,388,393,394,383,474,471,484,458,664,629,700,682,679,675,682,523,764,728,720,564,820,771,847,840,888,895,1171,1145,972,894,1597,1615,1818,1567,2228,2141,29987,3013]} 1. e4 {[%emt 0:00:02]} e5 {[%emt 0:00:03]} 2. Nf3 {[%emt 0:00:04]} Nc6 {[%emt 0:00:03]} 3. Bc4 {[%emt 0:00:03]} Nf6 {[%emt 0:00:15]} 4. Ng5 {[%emt 0:00:04]} d5 {[%emt 0:00:05]} 5. exd5 {[%emt 0:00:03]} Na5 {[%emt 0:00:04]} 6. Bb5+ {[%emt 0:00:03]} c6 {[%emt 0:00:05]} 7. dxc6 {[%emt 0:00:03]} bxc6 {[%emt 0:00:03]} 8. Bd3 {[%emt 0:00:04]} Nd5 {[%emt 0:00:44] C58: Two Knights: 4 Ng5 d5 5 exd5 Na5 sidelines.} 9. h4 {[%emt 0:00:04][%cal Od1f3]} (9. Nxh7 Nf4 10. Be4 Rxh7 $17) 9... h6 {[%emt 0:01:25]} 10. Qh5 {[%emt 0:00:14][%csl Gg5][%cal Rh5f7] [#]} Qf6 {[%emt 0:00:11] White is slightly better.} 11. Ne4 {[%emt 0:00:30]} (11. Nh7 $5 Rxh7 12. Bxh7 $11) 11... Qe6 {[%emt 0:00:39]} 12. Ng5 {[%emt 0:00:09]} Qf6 {[%emt 0:00:05] ...Nf4 is the strong threat. Black sacrificed a pawn} 13. Ne4 {[%emt 0:00:02]} (13. Nh7 $1 $14 Rxh7 14. Bxh7) 13... Qe6 $11 {[%emt 0:00:15]} 14. b3 {[%emt 0:00:02]} g6 {[%emt 0:02:02]} 15. Qe2 {[%emt 0:00:04]} f5 {[%emt 0:02:07]} 16. Nec3 {[%emt 0:00:03]} Bg7 {[%emt 0:05:01]} (16... Nf4 $11 17. Qf1 Bg7) 17. Bb2 $14 {[%emt 0:00:49]} O-O {[%emt 0:00:55]} 18. Na3 {[%emt 0:00:03]} e4 {[%emt 0:04:47]} 19. Bc4 {[%emt 0:00:03]} Nxc4 {[%emt 0:01:42]} 20. Qxc4 {[%emt 0:00:05]} a5 $146 {[%emt 0:02:15]} (20... Rb8 21. O-O-O Rb4 22. Qe2 a5 23. Rhe1 a4 24. g3 axb3 25. axb3 Qd6 26. f3 Qc5 27. Nab1 Re8 28. fxe4 fxe4 {0-1 Firouzja,A (2777)-Caruana,F (2795) Sinquefield Cup 10th 2023 (6)}) 21. O-O-O {[%emt 0:00:10][%cal Be1c1,Bc1b2,Bb2b1][%mdl 32]} Ba6 {[%emt 0:00:21]} (21... Rf7 $1 $11) 22. Qc5 {[%emt 0:00:06]} Rfd8 {[%emt 0:12:13]} (22... Rf7 $14) 23. Na4 $16 {[%emt 0:15:06]} Bxb2+ {[%emt 0:05:41]} 24. Kxb2 {[%emt 0:01:41][%cal Oh1e1]} Qf6+ {[%emt 0:00:09]} 25. Kb1 {[%emt 0:01:05][%cal Oh1e1]} h5 {[%emt 0:03:59]} (25... Rab8 $14) 26. Rhe1 {[%emt 0:07:03]} (26. Qxa5 $2 Bb5 27. Nxb5 Rxa5 $19) 26... Bb5 {[%emt 0:12:02]} 27. Nc3 {[%emt 0:21:49]} ({White should play} 27. Nxb5 $16 cxb5 28. Qxb5) 27... Qe5 {[%emt 0:03:55]} (27... Nf4 $14) 28. d4 $36 {[%emt 0:15:01][%mdl 2048] Keeping Black busy.} Qe6 {[%emt 0:02:49]} 29. f3 {[%emt 0:00:12]} e3 $2 {[%emt 0:01:22] A mistake that costs the game.} (29... a4 $16) 30. Naxb5 $18 {[%emt 0:01:39]} cxb5 {[%emt 0:00:06]} 31. Nxd5 {[%emt 0:00:04]} (31. Nxb5 Rdc8 (31... Rac8 32. Qa7 $11) 32. Qa3 (32. Qd6 Nc3+ 33. Kb2 Nxd1+ 34. Rxd1 Qxd6 $15) 32... Rab8 $14) 31... Qxd5 {[%emt 0:07:14]} 32. Qxd5+ {[%emt 0:00:07]} (32. Rxe3 $2 {is the wrong capture.} Qxc5 33. dxc5 Rxd1+ $19) 32... Rxd5 {[%emt 0:00:02][%mdl 4096] Endgame KRR-KRR. White is a pawn up.} 33. c4 {[%emt 0:01:10]} (33. Rxe3 Rad8 34. Rc3 Rxd4 $18) 33... bxc4 {[%emt 0:00:02]} 34. bxc4 {[%emt 0:00:04]} (34. Rxe3 cxb3 35. axb3 (35. Rxb3 Rc8 $11) 35... a4 $14) 34... Rb8+ {[%emt 0:00:08]} 35. Kc2 {[%emt 0:00:17]} ({Weaker is} 35. Ka1 Rd7 36. Rxe3 Kf7 $18) 35... Rd7 {[%emt 0:01:07]} 36. Rxe3 {[%emt 0:00:19]} Rb4 {[%emt 0:00:05]} (36... Kf8 $142 37. c5 Rdb7) 37. Rc3 {[%emt 0:00:14]} Rdb7 {[%emt 0:01:34]} 38. Kd3 {[%emt 0:00:06]} Kf7 {[%emt 0:00:09]} 39. d5 {[%emt 0:01:29]} Rc7 {[%emt 0:03:37][%cal Bb7c7,Bc7c8,Bc8d8][%mdl 32]} 40. Rd2 {[%emt 0:00:00]} a4 {[%emt 0:00:00]} 41. Kd4 {[%emt 0:01:33]} Rc8 {[%emt 0:02:15]} 42. Re2 {[%emt 0:01:03]} Rb1 {[%emt 0:03:21]} 43. c5 {[%emt 0:02:15]} Rd1+ {[%emt 0:00:55]} 44. Kc4 {[%emt 0:00:06]} Rd8 {[%emt 0:01:25]} 45. d6 {[%emt 0:00:09][%cal Bd5d6,Bd6d7][%mdl 32]} Rc8 {[%emt 0:00:14]} 46. Re7+ {[%emt 0:00:14]} Kf6 {[%emt 0:00:06]} 47. Rc7 {[%emt 0:01:15]} Rb8 {[%emt 0:00:51]} 48. Rd3 {[%emt 0:01:48]} Rc1+ {[%emt 0:00:55]} 49. Kd5 {[%emt 0:00:17] [#] and d7 would now be decisive} Rcb1 {[%emt 0:02:08]} 50. d7 {[%emt 0:00:33] Intending Rc8 and mate.} Ke7 {[%emt 0:00:17]} 51. Kc6 {[%emt 0:00:20] Weighted Error Value: White=0.16 (very precise) /Black=0.39  Loses game:     	---       	Black=1      Mistake:       	White=2     	Black=6      Inaccurate:     	White=2     	Black=2      OK:         	White=9     	Black=8      Best:        	White=8     	---} (51. Re3+ $142 Kf8 52. Rc8+ Kg7 53. Rd3 (53. d8=Q Rd1+ 54. Kc4 Rxd8 $18) (53. Re7+ Kf6 $18) 53... R1b7 54. d8=Q (54. d8=R Rxc8 55. Rxc8 Re7 $18) 54... Rxc8 55. Qxc8 Rf7 56. c6) 1-0

[Event "European Womens-ch 2025"]
[Site "Rhodes"]
[Date "2025.04.03"]
[Round "4.3"]
[White "Radeva, Viktoria"]
[Black "Khotenashvili, Bella"]
[Result "0-1"]
[Annotator "RC"]
[ECO "B12"]
[WhiteElo "2297"]
[BlackElo "2418"]
[PlyCount "88"]
[EventDate "2025.03.29"]
[EventType "swiss"]
[EventCountry "GRE"]
[SourceTitle "playchess.com"]
[Source "ChessBase"]
[SourceQuality "1"]
[TimeControl "40/5400+30:1800+30"]

1. e4 {[%emt 0:00:51]} c6 {[%emt 0:00:44]} 2. d4 {[%emt 0:00:32]} d5 {[%emt 0:00:07]} 3. e5 {[%emt 0:00:10]} Bf5 {[%emt 0:00:12]} 4. h4 {[%emt 0:00:12]} h5 {[%emt 0:00:06]} 5. Bd3 {[%emt 0:00:07]} Bxd3 {[%emt 0:00:07]} 6. Qxd3 {[%emt 0:00:07]} Qa5+ {[%emt 0:00:13]} 7. Nc3 {[%emt 0:00:18]} e6 {[%emt 0:00:23]} 8. Bg5 {[%emt 0:00:51]} Bb4 {[%emt 0:17:35]} 9. Nge2 {[%emt 0:04:02]} c5 {[%emt 0:00:17]} 10. O-O {[%emt 0:09:58]} Nc6 {[%emt 0:00:37]} 11. dxc5 {[%emt 0:20:54]} Qxc5 {[%emt 0:06:12]} 12. Qg3 {[%emt 0:09:06]} Qc4 {[%emt 0:14:48]} 13. a3 {[%emt 0:07:50]} Bxc3 {[%emt 0:07:47]} 14. Nxc3 {[%emt 0:00:06]} Nd4 {[%emt 0:00:25]} 15. Qd3 {[%emt 0:18:15]} Qxd3 {[%emt 0:06:48]} 16. cxd3 {[%emt 0:00:25]} Ne7 {[%emt 0:00:14]} 17. Bxe7 {[%emt 0:12:40]} Kxe7 {[%emt 0:00:06]} 18. a4 {[%emt 0:00:53]} a5 {[%emt 0:15:32]} 19. Nb5 {[%emt 0:02:39]} Nxb5 {[%emt 0:02:19]} 20. axb5 {[%emt 0:00:04]} Rhc8 {[%emt 0:00:06]} 21. Rfc1 {[%emt 0:03:29]} Kd7 {[%emt 0:00:09]} 22. d4 {[%emt 0:01:21]} Rxc1+ {[%emt 0:03:16]} 23. Rxc1 {[%emt 0:00:04]} Rc8 {[%emt 0:00:24]} 24. Rc5 {[%emt 0:00:12]} a4 {[%emt 0:00:50]} 25. Kf1 {[%emt 0:02:12]} Ra8 {[%emt 0:01:20]} 26. Rc3 {[%emt 0:01:40]} Kd8 {[%emt 0:05:45]} 27. Rf3 {[%emt 0:02:32]} Ra5 {[%emt 0:03:19]} 28. b6 {[%emt 0:00:19]} Rb5 {[%emt 0:00:22]} 29. Rxf7 {[%emt 0:00:09]} Rxb6 {[%emt 0:01:42]} 30. Rxg7 {[%emt 0:01:48]} Rxb2 {[%emt 0:00:02]} 31. g4 {[%emt 0:00:25]} a3 {[%emt 0:01:49]} 32. Rg8+ {[%emt 0:00:18]} Ke7 {[%emt 0:01:27]} 33. Ra8 {[%emt 0:00:13]} a2 {[%emt 0:00:04]} 34. Kg2 {[%emt 0:00:03]} hxg4 {[%emt 0:00:10]} 35. Kg3 {[%emt 0:01:13]} Kf7 {[%emt 0:00:35]} 36. Kxg4 {[%emt 0:00:39]} Rxf2 {[%emt 0:00:12]} 37. Ra7 {[%emt 0:00:46]} Kg6 {[%emt 0:00:44]} 38. Ra8 {[%emt 0:01:14]} Rd2 {[%emt 0:01:33]} 39. Rg8+ {[%emt 0:00:40]} Kh6 {[%emt 0:01:57]} 40. Rh8+ {[%emt 0:00:00]} Kg7 {[%emt 0:00:00]} 41. Ra8 {[%emt 0:00:18]} Rxd4+ {[%emt 0:01:15]} 42. Kg5 {[%emt 0:00:28]} Rd2 {[%emt 0:01:28]} 43. h5 {[%emt 0:08:05]} Rg2+ {[%emt 0:02:33]} 44. Kf4 {[%emt 0:00:09]} b5 {[%emt 0:02:38]} 0-1

[Event "European Womens-ch 2025"]
[Site "Rhodes"]
[Date "2025.04.03"]
[Round "4.4"]
[White "Brunello, Marina"]
[Black "Beydullayeva, Govhar"]
[Result "0-1"]
[Annotator "RC"]
[ECO "C54"]
[WhiteElo "2330"]
[BlackElo "2400"]
[PlyCount "72"]
[EventDate "2025.03.29"]
[EventType "swiss"]
[EventCountry "GRE"]
[SourceTitle "playchess.com"]
[Source "ChessBase"]
[SourceQuality "1"]
[TimeControl "40/5400+30:1800+30"]

1. e4 {[%emt 0:01:40]} e5 {[%emt 0:00:09]} 2. Nf3 {[%emt 0:00:08]} Nc6 {[%emt 0:00:03]} 3. Bc4 {[%emt 0:00:04]} Nf6 {[%emt 0:00:04]} 4. d3 {[%emt 0:00:07]} Bc5 {[%emt 0:00:25]} 5. O-O {[%emt 0:00:25]} d6 {[%emt 0:00:14]} 6. c3 {[%emt 0:00:11]} a5 {[%emt 0:00:15]} 7. Re1 {[%emt 0:00:11]} O-O {[%emt 0:01:26]} 8. h3 {[%emt 0:00:10]} Be6 {[%emt 0:01:16]} 9. Bb5 {[%emt 0:02:30]} Ba7 {[%emt 0:01:01]} 10. Nbd2 {[%emt 0:05:38]} Ne7 {[%emt 0:01:00]} 11. d4 {[%emt 0:00:58]} c6 {[%emt 0:01:47]} 12. Bd3 {[%emt 0:02:26]} Ng6 {[%emt 0:00:21]} 13. Nf1 {[%emt 0:00:29]} Nh5 {[%emt 1:28:59]} 14. Ne3 {[%emt 0:03:36]} Nhf4 {[%emt 0:00:00]} 15. Bf1 {[%emt 0:00:09]} f6 {[%emt 0:00:00]} 16. Kh2 {[%emt 0:11:14]} d5 {[%emt 0:00:00]} 17. exd5 {[%emt 0:05:13]} Nxd5 {[%emt 0:00:00]} 18. Nc2 {[%emt 0:05:18]} Qc7 {[%emt 0:00:00]} 19. g3 {[%emt 0:02:47]} Rae8 {[%emt 0:00:00]} 20. Bg2 {[%emt 0:10:03]} Bc8 {[%emt 0:00:00]} 21. dxe5 {[%emt 0:07:39]} fxe5 {[%emt 0:00:00]} 22. Ne3 {[%emt 0:00:27]} e4 {[%emt 0:00:00]} 23. Ng5 {[%emt 0:04:10]} Nf6 {[%emt 0:00:00]} 24. Qc2 {[%emt 0:05:18]} Nh4 {[%emt 0:00:00]} 25. Nc4 {[%emt 0:10:25]} Nxg2 {[%emt 0:00:00]} 26. Kxg2 {[%emt 0:00:10]} Nd5 {[%emt 0:00:00]} 27. Rxe4 {[%emt 0:05:35]} Rxe4 {[%emt 0:00:00]} 28. Nxe4 {[%emt 0:00:04]} Bf5 {[%emt 0:00:37]} 29. f4 {[%emt 0:08:52]} Qe7 {[%emt 0:00:43]} 30. Ne5 {[%emt 0:00:09]} Bb8 {[%emt 0:01:07]} 31. Bd2 {[%emt 0:03:25]} Bxe5 {[%emt 0:01:04]} 32. fxe5 {[%emt 0:00:05]} Qxe5 {[%emt 0:00:16]} 33. Re1 {[%emt 0:00:05]} Re8 {[%emt 0:01:20]} 34. Kf3 {[%emt 0:00:04]} Bxh3 {[%emt 0:02:49]} 35. Ng5 {[%emt 0:00:45]} Rf8+ {[%emt 0:00:41]} 36. Bf4 {[%emt 0:00:04]} Qxg5 {[%emt 0:00:08]} 0-1

[Event "European Womens-ch 2025"]
[Site "Rhodes"]
[Date "2025.04.03"]
[Round "4.5"]
[White "Danielian, Elina"]
[Black "Toncheva, Nadya"]
[Result "1-0"]
[Annotator "RC"]
[ECO "D17"]
[WhiteElo "2398"]
[BlackElo "2329"]
[PlyCount "71"]
[EventDate "2025.03.29"]
[EventType "swiss"]
[EventCountry "GRE"]
[SourceTitle "playchess.com"]
[Source "ChessBase"]
[SourceQuality "1"]
[TimeControl "40/5400+30:1800+30"]

1. d4 {[%emt 0:00:03]} d5 {[%emt 0:02:25]} 2. Nf3 {[%emt 0:00:09]} Nf6 {[%emt 0:00:06]} 3. c4 {[%emt 0:00:06]} c6 {[%emt 0:00:02]} 4. Nc3 {[%emt 0:00:15]} dxc4 {[%emt 0:01:42]} 5. a4 {[%emt 0:00:07]} Bf5 {[%emt 0:00:04]} 6. Ne5 {[%emt 0:00:41]} Nbd7 {[%emt 0:00:08]} 7. Nxc4 {[%emt 0:00:07]} Qc7 {[%emt 0:00:04]} 8. g3 {[%emt 0:00:10]} e5 {[%emt 0:00:04]} 9. dxe5 {[%emt 0:00:18]} Nxe5 {[%emt 0:00:05]} 10. Bf4 {[%emt 0:00:13]} Nfd7 {[%emt 0:00:05]} 11. Bg2 {[%emt 0:00:25]} f6 {[%emt 0:00:08]} 12. O-O {[%emt 0:01:44]} g5 {[%emt 0:00:11]} 13. Nxe5 {[%emt 0:01:54]} gxf4 {[%emt 0:00:08]} 14. Nd3 {[%emt 0:01:01]} O-O-O {[%emt 0:24:00]} 15. Nd5 {[%emt 0:27:26]} cxd5 {[%emt 0:01:13]} 16. Rc1 {[%emt 0:00:02]} Nc5 {[%emt 0:00:54]} 17. Nxc5 {[%emt 0:00:10]} Bxc5 {[%emt 0:00:04]} 18. b4 {[%emt 0:00:13]} b6 {[%emt 0:06:44]} 19. a5 {[%emt 0:04:12]} fxg3 {[%emt 0:22:51]} 20. hxg3 {[%emt 0:00:19]} Be4 {[%emt 0:07:11]} 21. axb6 {[%emt 0:00:15]} axb6 {[%emt 0:03:38]} 22. bxc5 {[%emt 0:00:14]} bxc5 {[%emt 0:01:00]} 23. Bxe4 {[%emt 0:18:03]} dxe4 {[%emt 0:00:09]} 24. Qa4 {[%emt 0:00:03]} Rhe8 {[%emt 0:17:41]} 25. Rb1 {[%emt 0:13:38]} Re6 {[%emt 0:01:42]} 26. Qa8+ {[%emt 0:00:30]} Kd7 {[%emt 0:00:04]} 27. Rfd1+ {[%emt 0:00:23]} Rd6 {[%emt 0:00:55]} 28. Qxe4 {[%emt 0:00:06]} Re8 {[%emt 0:07:25]} 29. Rxd6+ {[%emt 0:11:05]} Qxd6 {[%emt 0:00:04]} 30. Qxh7+ {[%emt 0:01:11]} Ke6 {[%emt 0:00:07]} 31. Rb7 {[%emt 0:06:47]} Qc6 {[%emt 0:03:56]} 32. e4 {[%emt 0:06:20]} Ke5 {[%emt 0:00:51]} 33. Rd7 {[%emt 0:01:35]} Qxe4 {[%emt 0:00:41]} 34. f4+ {[%emt 0:00:33]} Ke6 {[%emt 0:00:03]} 35. Qxe4+ {[%emt 0:00:14]} Kxd7 {[%emt 0:00:02]} 36. Qd5+ {[%emt 0:00:06]} 1-0

[Event "European Womens-ch 2025"]
[Site "Rhodes"]
[Date "2025.04.03"]
[Round "4.6"]
[White "Mkrtchian, Lilit"]
[Black "Antolak, Julia"]
[Result "1/2-1/2"]
[Annotator "RC"]
[ECO "E14"]
[WhiteElo "2388"]
[BlackElo "2314"]
[PlyCount "35"]
[EventDate "2025.03.29"]
[EventType "swiss"]
[EventCountry "GRE"]
[SourceTitle "playchess.com"]
[Source "ChessBase"]
[SourceQuality "1"]
[TimeControl "40/5400+30:1800+30"]

1. d4 {[%emt 0:00:26]} Nf6 {[%emt 0:00:31]} 2. Nf3 {[%emt 0:00:19]} d5 {[%emt 0:01:23]} 3. e3 {[%emt 0:01:42]} e6 {[%emt 0:01:30]} 4. Bd3 {[%emt 0:06:16]} Bd6 {[%emt 0:00:55]} 5. O-O {[%emt 0:02:47]} b6 {[%emt 0:02:30]} 6. b3 {[%emt 0:03:49]} Bb7 {[%emt 0:02:33]} 7. Bb2 {[%emt 0:00:17]} O-O {[%emt 0:01:17]} 8. c4 {[%emt 0:00:26]} c5 {[%emt 0:01:09]} 9. dxc5 {[%emt 0:09:49]} Bxc5 {[%emt 0:01:54]} 10. Nbd2 {[%emt 0:05:06]} Nbd7 {[%emt 0:07:37]} 11. a3 {[%emt 0:03:14]} Qe7 {[%emt 0:03:37]} 12. cxd5 {[%emt 0:12:35]} exd5 {[%emt 0:08:49]} 13. Nd4 {[%emt 0:01:41]} Ne5 {[%emt 0:01:39]} 14. Be2 {[%emt 0:06:00]} Ne4 {[%emt 0:09:03]} 15. N2f3 {[%emt 0:14:55]} Nxf3+ {[%emt 0:04:20]} 16. Bxf3 {[%emt 0:00:19]} f5 {[%emt 0:00:55]} 17. Ne2 {[%emt 0:13:08]} a5 {[%emt 0:05:06]} 18. g3 {[%emt 0:07:47]} 1/2-1/2

[Event "European Womens-ch 2025"]
[Site "Rhodes"]
[Date "2025.04.03"]
[Round "4.7"]
[White "Maltsevskaya, Aleksandra"]
[Black "Unuk, Laura"]
[Result "1-0"]
[Annotator "RC"]
[ECO "D34"]
[WhiteElo "2376"]
[BlackElo "2301"]
[PlyCount "55"]
[EventDate "2025.03.29"]
[EventType "swiss"]
[EventCountry "GRE"]
[SourceTitle "playchess.com"]
[Source "ChessBase"]
[SourceQuality "1"]
[TimeControl "40/5400+30:1800+30"]

1. c4 {[%emt 0:00:03]} e6 {[%emt 0:01:50]} 2. Nf3 {[%emt 0:00:14]} d5 {[%emt 0:00:05]} 3. g3 {[%emt 0:00:00]} Nf6 {[%emt 0:00:00]} 4. Bg2 {[%emt 0:00:00]} c5 {[%emt 0:00:12]} 5. cxd5 {[%emt 0:00:27]} exd5 {[%emt 0:01:35]} 6. d4 {[%emt 0:00:20]} Nc6 {[%emt 0:00:31]} 7. O-O {[%emt 0:00:35]} Be7 {[%emt 0:05:53]} 8. Nc3 {[%emt 0:01:14]} O-O {[%emt 0:03:52]} 9. h3 {[%emt 0:11:31]} a6 {[%emt 0:10:57]} 10. Be3 {[%emt 0:07:42]} c4 {[%emt 0:03:48]} 11. Ne5 {[%emt 0:00:55]} Be6 {[%emt 0:07:52]} 12. f4 {[%emt 0:09:41]} Qc7 {[%emt 0:25:53]} 13. f5 {[%emt 0:14:00]} Bc8 {[%emt 0:00:42]} 14. g4 {[%emt 0:06:58]} h6 {[%emt 0:01:16]} 15. Qd2 {[%emt 0:04:29]} Bd6 {[%emt 0:08:22]} 16. Nxc6 {[%emt 0:11:34]} bxc6 {[%emt 0:00:17]} 17. Bxh6 {[%emt 0:00:38]} gxh6 {[%emt 0:00:35]} 18. Qxh6 {[%emt 0:00:04]} Qe7 {[%emt 0:02:32]} 19. e4 {[%emt 0:00:39]} Rd8 {[%emt 0:10:45]} 20. e5 {[%emt 0:07:43]} Qa7 {[%emt 0:10:26]} 21. Qg5+ {[%emt 0:02:03]} Kh7 {[%emt 0:01:32]} 22. exf6 {[%emt 0:02:29]} Qxd4+ {[%emt 0:00:05]} 23. Kh1 {[%emt 0:00:02]} Bf8 {[%emt 0:00:23]} 24. Qh5+ {[%emt 0:00:59]} Kg8 {[%emt 0:00:05]} 25. g5 {[%emt 0:00:04]} Qe3 {[%emt 0:02:58]} 26. Rae1 {[%emt 0:00:25]} Qd2 {[%emt 0:00:27]} 27. Re2 {[%emt 0:00:17]} Qd3 {[%emt 0:00:32]} 28. g6 {[%emt 0:00:11]} 1-0

[Event "European Womens-ch 2025"]
[Site "Rhodes"]
[Date "2025.04.03"]
[Round "4.8"]
[White "Calzetta Ruiz, Monica"]
[Black "Socko, Monika"]
[Result "1/2-1/2"]
[Annotator "RC"]
[ECO "C06"]
[WhiteElo "2230"]
[BlackElo "2369"]
[PlyCount "87"]
[EventDate "2025.03.29"]
[EventType "swiss"]
[EventCountry "GRE"]
[SourceTitle "playchess.com"]
[Source "ChessBase"]
[SourceQuality "1"]
[TimeControl "40/5400+30:1800+30"]

1. e4 {[%emt 0:01:08]} e6 {[%emt 0:00:03]} 2. d4 {[%emt 0:00:09]} d5 {[%emt 0:00:04]} 3. Nd2 {[%emt 0:00:18]} c5 {[%emt 0:00:04]} 4. Ngf3 {[%emt 0:00:06]} Nf6 {[%emt 0:00:03]} 5. e5 {[%emt 0:00:18]} Nfd7 {[%emt 0:00:04]} 6. c3 {[%emt 0:00:08]} Nc6 {[%emt 0:00:04]} 7. Bd3 {[%emt 0:00:16]} Be7 {[%emt 0:00:11]} 8. O-O {[%emt 0:00:39]} g5 {[%emt 0:00:09]} 9. a3 {[%emt 0:00:45]} a6 {[%emt 0:15:14]} 10. b4 {[%emt 0:02:44]} c4 {[%emt 0:03:09]} 11. Be2 {[%emt 0:11:56]} Nf8 {[%emt 0:00:39]} 12. Ne1 {[%emt 0:07:54]} Ng6 {[%emt 0:00:05]} 13. g3 {[%emt 0:02:24]} f5 {[%emt 0:05:00]} 14. exf6 {[%emt 0:14:35]} Bxf6 {[%emt 0:00:04]} 15. Nc2 {[%emt 0:04:06]} O-O {[%emt 0:02:41]} 16. Ne3 {[%emt 0:09:56]} b5 {[%emt 0:11:59]} 17. a4 {[%emt 0:03:41]} Rb8 {[%emt 0:04:35]} 18. axb5 {[%emt 0:00:23]} axb5 {[%emt 0:02:19]} 19. Bf3 {[%emt 0:10:12]} Nce7 {[%emt 0:04:47]} 20. Ng4 {[%emt 0:04:54]} e5 {[%emt 0:03:39]} 21. Nxf6+ {[%emt 0:01:19]} Rxf6 {[%emt 0:00:05]} 22. dxe5 {[%emt 0:02:58]} Nxe5 {[%emt 0:00:04]} 23. Bg2 {[%emt 0:02:58]} Bg4 {[%emt 0:02:20]} 24. Qe1 {[%emt 0:00:36]} Re6 {[%emt 0:11:59]} 25. Qe3 {[%emt 0:00:09]} h6 {[%emt 0:07:28]} 26. h3 {[%emt 0:02:20]} Nf3+ {[%emt 0:00:31]} 27. Nxf3 {[%emt 0:00:06]} Rxe3 {[%emt 0:00:03]} 28. Bxe3 {[%emt 0:00:09]} Bf5 {[%emt 0:01:24]} 29. Ra6 {[%emt 0:02:27]} Be4 {[%emt 0:02:20]} 30. Rxh6 {[%emt 0:03:07]} Qf8 {[%emt 0:05:44]} 31. Bxg5 {[%emt 0:02:46]} Bxf3 {[%emt 0:00:03]} 32. Bxf3 {[%emt 0:00:09]} Qxf3 {[%emt 0:00:31]} 33. Bxe7 {[%emt 0:00:04]} Qxc3 {[%emt 0:03:41]} 34. Bf6 {[%emt 0:00:12]} Qd2 {[%emt 0:01:37]} 35. Rh8+ {[%emt 0:01:02]} Kf7 {[%emt 0:00:03]} 36. Rxb8 {[%emt 0:00:10]} Kxf6 {[%emt 0:00:02]} 37. Rxb5 {[%emt 0:02:27]} c3 {[%emt 0:01:11]} 38. Rc5 {[%emt 0:02:06]} d4 {[%emt 0:04:21]} 39. Ra1 {[%emt 0:02:36]} c2 {[%emt 0:04:36]} 40. Ra6+ {[%emt 0:00:00]} Ke7 {[%emt 0:00:00]} 41. Ra7+ {[%emt 0:08:39]} Kd6 {[%emt 0:00:33]} 42. Ra6+ {[%emt 0:00:31]} Kd7 {[%emt 0:00:03]} 43. Ra7+ {[%emt 0:00:06]} Kd6 {[%emt 0:00:02]} 44. Ra6+ {[%emt 0:00:05]} 1/2-1/2